bitfinex/quotes_SOLUSD_20251226
["timestamp","ask_amount","ask_price","bid_price","bid_amount"]
[1766776174046,4.45324141,122.32,122.29,0.72]
[1766776175062,0.69,122.32,122.29,0.72]
[1766776176536,122.23324141,122.33,122.29,0.72]
[1766776176951,0.69,122.32,122.29,0.72]
[1766776179245,122.23324141,122.33,122.3,0.72]
[1766776179740,117.78,122.33,122.3,0.72]
[1766776182864,121.54324141,122.33,122.3,0.72]
[1766776183073,0.69,122.32,122.29,0.72]
[1766776184368,0.69,122.32,122.28,8.88764852]
[1766776185153,0.69,122.32,122.29,0.71]
[1766776187351,0.69,122.32,122.29,8.88723443]
[1766776187551,0.69,122.32,122.29,8.17723443]
[1766776187788,0.69,122.32,122.3,0.71]
[1766776187960,103.46,122.33,122.3,0.71]
[1766776192370,103.46,122.33,122.28,10.58511869]
[1766776192574,0.68,122.32,122.29,0.71]
[1766776193283,0.68,122.32,122.28,10.58511869]
[1766776193481,0.68,122.32,122.28,11.29511869]
[1766776193661,0.68,122.32,122.29,0.71]
[1766776194381,105.8672701,122.33,122.29,0.71]
[1766776194584,103.46,122.33,122.29,0.71]
[1766776195386,102.78,122.33,122.29,0.71]
[1766776195600,102.78,122.33,122.3,0.71]
[1766776200081,3.0872701,122.34,122.3,0.71]
[1766776200284,3.0872701,122.33,122.3,0.71]
[1766776201874,0.68,122.33,122.3,0.71]
[1766776203200,3.0872701,122.33,122.3,0.71]
[1766776203377,0.68,122.33,122.3,0.71]
[1766776203580,3.0872701,122.33,122.3,0.71]
[1766776203968,0.68,122.32,122.29,15.65]
[1766776204592,0.68,122.32,122.29,0.71]
[1766776204792,3.0872701,122.33,122.29,0.71]
[1766776207502,2.4072701,122.32,122.29,0.71]
[1766776207702,3.0872701,122.32,122.29,0.71]
[1766776208702,2.4072701,122.32,122.29,0.71]
[1766776210102,2.4072701,122.33,122.29,0.71]
[1766776213111,105.8672701,122.34,122.29,0.71]
[1766776214717,114.04124646,122.34,122.29,0.71]
[1766776215612,2.4072701,122.33,122.29,0.71]
[1766776217106,2.4072701,122.32,122.29,0.71]
[1766776217286,3.0872701,122.32,122.29,0.71]
[1766776217486,2.4072701,122.31,122.29,0.71]
[1766776217889,3.0872701,122.32,122.29,0.71]
[1766776218812,110.95407111,122.34,122.29,0.71]
[1766776218813,3.0872701,122.31,122.29,0.71]
[1766776225421,0.68,122.31,122.29,0.71]
[1766776226604,3.0872701,122.31,122.29,0.71]
[1766776227827,3.0872701,122.32,122.29,0.71]
[1766776231022,0.68,122.32,122.29,0.71]
[1766776231200,3.0872701,122.32,122.29,0.71]
[1766776241222,0.68,122.32,122.29,0.71]
[1766776241432,18.0872701,122.33,122.29,0.71]
[1766776241803,102.78,122.34,122.3,0.7]
[1766776242124,103.46,122.34,122.3,8.17649601]
[1766776242322,103.46,122.34,122.31,0.7]
[1766776242525,105.8672701,122.34,122.31,0.7]
[1766776244029,103.46,122.34,122.31,0.7]
[1766776244410,105.8672701,122.34,122.31,0.7]
[1766776244910,103.46,122.34,122.31,0.7]
[1766776245129,0.66,122.38,122.34,0.69]
[1766776245427,18.0672701,122.39,122.35,0.69]
[1766776246333,0.66,122.38,122.35,0.69]
[1766776248106,15.0,122.39,122.36,0.69]
[1766776248307,15.66,122.39,122.36,0.69]
[1766776259143,15.0,122.39,122.36,8.17255377]
[1766776259445,0.76,122.4,122.37,0.69]
[1766776262736,0.1,122.4,122.38,0.69]
[1766776286769,0.1,122.4,122.37,14.94]
[1766776286963,0.79,122.4,122.37,15.63]
[1766776287543,0.69,122.37,122.33,0.69]
[1766776287867,4.44828692,122.37,122.33,0.69]
[1766776290065,103.47,122.39,122.35,0.69]
[1766776290367,103.47,122.39,122.36,0.69]
[1766776290555,0.69,122.39,122.36,0.69]
[1766776291059,4.44828692,122.39,122.36,0.69]
[1766776291367,0.69,122.38,122.36,0.69]
[1766776295252,0.69,122.39,122.36,0.69]
[1766776295452,4.44828692,122.39,122.36,0.69]
[1766776297069,0.69,122.39,122.36,4.44828692]
[1766776297249,0.69,122.39,122.35,14.94]
[1766776297445,3.75828692,122.39,122.35,19.38828692]
[1766776297667,4.44828692,122.38,122.35,15.63]
[1766776298872,0.69,122.37,122.35,14.94]
[1766776299076,0.69,122.37,122.34,0.69]
[1766776299540,0.69,122.37,122.34,4.44828692]
[1766776303578,0.69,122.37,122.34,0.69]
[1766776303875,0.68,122.38,122.35,4.41828692]
[1766776306881,0.68,122.38,122.35,0.66]
[1766776307083,0.68,122.38,122.35,4.41828692]
[1766776307684,0.68,122.38,122.35,0.66]
[1766776307976,0.68,122.38,122.35,4.41828692]
[1766776309191,0.68,122.38,122.35,3.75828692]
[1766776309359,0.68,122.38,122.34,19.38828692]
[1766776309981,0.68,122.38,122.34,18.03546268]
[1766776311692,0.69,122.37,122.34,2.40546268]
[1766776312185,0.69,122.37,122.33,0.69]
[1766776312485,0.69,122.37,122.33,3.09546268]
[1766776312782,0.69,122.37,122.34,2.40546268]
[1766776313378,0.69,122.37,122.33,0.69]
[1766776313579,0.69,122.37,122.34,2.40546268]
[1766776314790,0.69,122.37,122.33,0.69]
[1766776314964,0.69,122.37,122.33,3.09546268]
[1766776318184,0.69,122.37,122.34,3.09546268]
[1766776318783,0.69,122.37,122.34,0.69]
[1766776320587,0.69,122.37,122.34,3.09546268]
[1766776320793,0.69,122.39,122.35,3.09546268]
[1766776321091,0.69,122.39,122.36,2.40546268]
[1766776321766,0.69,122.39,122.35,3.09546268]
[1766776321978,8.17069067,122.39,122.35,3.09546268]
[1766776322282,0.69,122.38,122.35,3.09546268]
[1766776328769,0.69,122.38,122.35,0.69]
[1766776328971,0.69,122.38,122.35,3.09546268]
[1766776333783,0.69,122.38,122.35,0.69]
[1766776333985,0.69,122.38,122.35,3.09546268]
[1766776337290,0.69,122.38,122.35,0.69]
[1766776338385,0.69,122.38,122.34,3.10546268]
[1766776339594,0.69,122.38,122.35,0.7]
[1766776339793,0.69,122.37,122.33,0.7]
[1766776339997,0.69,122.37,122.34,0.7]
[1766776344909,0.69,122.37,122.34,3.10546268]
[1766776346804,0.69,122.37,122.34,0.7]
[1766776347012,0.69,122.37,122.34,3.10546268]
[1766776348213,0.69,122.37,122.34,0.7]
[1766776348384,0.69,122.37,122.34,3.10546268]
[1766776350510,0.69,122.37,122.34,0.7]
[1766776351409,105.18546268,122.37,122.31,8.17566165]
[1766776351606,0.69,122.35,122.32,3.10546268]
[1766776351986,0.69,122.35,122.33,0.7]
[1766776352792,3.09546268,122.36,122.33,0.7]
[1766776358004,0.69,122.33,122.28,0.7]
[1766776358209,3.09546268,122.33,122.3,0.7]
[1766776359206,0.69,122.33,122.3,3.10546268]
[1766776360787,0.69,122.33,122.3,0.7]
[1766776361826,3.09546268,122.33,122.3,0.7]
[1766776365122,2.40546268,122.33,122.3,0.7]
[1766776369902,4.4515934,122.33,122.3,0.7]
[1766776372612,0.69,122.33,122.3,0.7]
[1766776372822,0.69,122.33,122.3,4.4615934]
[1766776377118,0.69,122.33,122.3,0.7]
[1766776377935,4.4515934,122.33,122.3,0.7]
[1766776379639,0.69,122.33,122.3,0.7]
[1766776379840,4.4515934,122.33,122.3,0.7]
[1766776384047,3.7615934,122.32,122.3,0.7]
[1766776384416,4.4515934,122.32,122.29,0.65]
[1766776386319,19.4515934,122.31,122.27,4.4115934]
[1766776386723,19.4515934,122.31,122.28,0.65]
[1766776388847,15.69,122.31,122.28,0.65]
[1766776389035,19.4515934,122.31,122.28,0.65]
[1766776391250,0.69,122.3,122.28,0.65]
[1766776393945,18.7615934,122.31,122.28,0.65]
[1766776394148,19.4515934,122.31,122.28,0.65]
[1766776396457,122.2315934,122.31,122.28,0.65]
[1766776396634,0.69,122.3,122.28,0.65]
[1766776398448,122.2315934,122.31,122.28,0.65]
[1766776400948,102.78,122.31,122.29,0.72]
[1766776407462,107.2315934,122.31,122.28,0.72]
[1766776407643,3.7615934,122.29,122.25,23.31994663]
[1766776407843,4.4515934,122.29,122.26,0.72]
[1766776414766,0.69,122.27,122.25,0.2]
[1766776415067,4.4515934,122.28,122.25,0.92]
[1766776418474,0.69,122.27,122.25,0.2]
[1766776419955,4.4515934,122.28,122.25,0.92]
[1766776426782,0.69,122.28,122.25,0.92]
[1766776427079,4.4515934,122.28,122.25,0.92]
[1766776429987,3.09938158,122.28,122.25,0.92]
[1766776437880,2.40938158,122.28,122.25,0.2]
[1766776438084,2.40938158,122.28,122.26,0.66]
[1766776438592,120.84938158,122.29,122.26,0.66]
[1766776439294,120.18938158,122.29,122.26,0.66]
[1766776439496,0.66,122.28,122.26,0.66]
[1766776445575,3.06938158,122.28,122.26,0.66]
[1766776447698,0.66,122.28,122.26,0.66]
[1766776452215,117.78,122.29,122.26,3.06938158]
[1766776452507,0.66,122.3,122.27,0.66]
[1766776453200,0.66,122.29,122.27,0.66]
[1766776454207,3.06938158,122.29,122.27,0.66]
[1766776454785,0.66,122.29,122.27,0.66]
[1766776455895,3.06938158,122.29,122.27,0.66]
[1766776456408,3.06938158,122.29,122.26,0.7]
[1766776457706,2.40938158,122.28,122.26,0.7]
[1766776458713,120.84938158,122.29,122.26,0.7]
[1766776460909,0.67,122.28,122.26,0.7]
[1766776462294,15.0,122.23,122.21,1e-08]
[1766776462493,2.40938158,122.25,122.21,0.70000001]
[1766776462687,2.40938158,122.24,122.21,0.70000001]
[1766776462902,2.40938158,122.25,122.21,0.70000001]
[1766776464531,10.58957267,122.25,122.21,0.70000001]
[1766776465112,2.40938158,122.24,122.21,0.70000001]
[1766776465300,2.40938158,122.23,122.21,0.70000001]
[1766776465495,2.40938158,122.23,122.21,1e-08]
[1766776466620,2.40938158,122.22,122.21,1e-08]
[1766776467000,23.18102012,122.24,122.21,1e-08]
[1766776467204,2.40938158,122.22,122.21,1e-08]
[1766776467716,2.40938158,122.22,122.19,0.7]
[1766776467927,2.40938158,122.21,122.19,0.7]
[1766776468619,2.40938158,122.21,122.18,0.7]
[1766776468916,2.40938158,122.21,122.17,0.2]
[1766776468917,15.0,122.18,122.17,1e-08]
[1766776469116,15.0,122.18,122.16,0.2]
[1766776469432,17.40938158,122.18,122.16,0.2]
[1766776470221,2.40938158,122.17,122.16,0.2]
[1766776470400,17.40938158,122.18,122.16,0.9]
[1766776474022,105.85938158,122.21,122.17,0.7]
[1766776474218,2.40938158,122.2,122.17,0.7]
[1766776475723,3.07938158,122.2,122.17,0.7]
[1766776477841,11.26277717,122.2,122.17,0.7]
[1766776485226,114.05210632,122.21,122.17,0.7]
[1766776490436,113.37210632,122.21,122.17,0.7]
[1766776490642,0.68,122.2,122.17,0.7]
[1766776492939,8.18332636,122.2,122.17,0.7]
[1766776493431,8.86332636,122.2,122.17,0.7]
[1766776494624,12.63273917,122.2,122.17,0.7]
[1766776497344,8.86332636,122.2,122.17,0.7]
[1766776497523,12.63273917,122.2,122.17,0.7]
[1766776507643,110.96291743,122.21,122.17,0.7]
[1766776507849,111.64291743,122.21,122.17,0.7]
[1766776508040,102.78,122.21,122.17,0.7]
[1766776509047,103.46,122.21,122.17,0.7]
[1766776510049,4.44941281,122.2,122.17,0.7]
[1766776511227,0.68,122.17,122.15,0.1]
[1766776511432,3.76941281,122.16,122.14,0.92]
[1766776511634,3.76941281,122.15,122.14,0.92]
[1766776512039,3.76941281,122.16,122.14,0.92]
[1766776514859,0.68,122.14,122.11,0.2]
[1766776515152,4.38941281,122.14,122.11,0.71000001]
[1766776517854,3.76941281,122.13,122.11,0.71000001]
[1766776520145,12.57691125,122.14,122.11,0.71000001]
[1766776521344,29.96,122.16,122.11,0.71000001]
[1766776521345,3.76941281,122.15,122.11,0.71000001]
[1766776522351,103.4,122.17,122.13,0.71]
[1766776522566,107.16941281,122.17,122.13,0.71]
[1766776527451,4.38941281,122.16,122.13,0.71]
[1766776527651,0.62,122.13,122.11,1e-08]
[1766776527850,4.38941281,122.13,122.11,1e-08]
[1766776528265,3.76941281,122.13,122.11,1e-08]
[1766776529550,3.76941281,122.12,122.11,1e-08]
[1766776529750,3.76941281,122.12,122.1,0.71]
[1766776530259,0.68,122.1,122.07,0.1]
[1766776530560,4.44941281,122.08,122.05,0.1]
[1766776531664,0.68,122.08,122.05,0.1]
[1766776532003,4.44941281,122.08,122.05,0.1]
[1766776532272,0.68,122.08,122.05,0.81]
[1766776532474,4.44941281,122.08,122.05,0.81]
[1766776535352,0.68,122.08,122.05,0.81]
[1766776535560,3.76941281,122.07,122.05,0.81]
[1766776535869,0.68,122.06,122.05,0.1]
[1766776536075,4.44941281,122.06,122.03,0.71]
[1766776536252,0.68,122.06,122.03,0.71]
[1766776536577,4.44941281,122.06,122.03,0.71]
[1766776536781,3.76941281,122.05,122.03,0.71]
[1766776537867,3.76941281,122.04,122.03,0.71]
[1766776538254,4.44941281,122.04,122.01,15.67]
[1766776538449,3.76941281,122.03,122.01,15.67]
[1766776539159,3.76941281,122.02,122.01,0.71]
[1766776539675,3.76941281,122.02,121.98,0.1]
[1766776539676,3.76941281,121.99,121.98,0.1]
[1766776539853,11.96680603,121.99,121.93,23.18134065]
[1766776540058,3.76941281,121.98,121.93,26.95075346]
[1766776540288,3.76941281,121.98,121.93,23.18134065]
[1766776540455,3.76941281,121.97,121.93,14.98]
[1766776540656,3.76941281,121.96,121.93,14.98]
[1766776541572,3.76941281,121.96,121.93,0.71]
[1766776541772,4.44941281,121.96,121.93,0.71]
[1766776542685,3.76941281,121.95,121.91,0.71]
[1766776542888,4.44941281,121.95,121.91,0.71]
[1766776543096,0.68,121.96,121.92,0.71]
[1766776543299,4.44941281,121.96,121.92,0.71]
[1766776543797,3.76941281,121.95,121.92,0.71]
[1766776543990,3.76941281,121.97,121.93,0.72]
[1766776544168,4.44941281,121.97,121.93,0.72]
[1766776545192,3.76941281,121.96,121.93,0.72]
[1766776545387,4.44941281,121.96,121.93,0.72]
[1766776545573,3.76941281,121.95,121.93,0.72]
[1766776546678,4.44941281,121.96,121.93,0.72]
[1766776548091,0.68,121.96,121.93,0.72]
[1766776548471,0.68,121.97,121.93,0.72]
[1766776548870,4.44941281,121.97,121.93,0.72]
[1766776549070,0.68,121.94,121.9,0.71]
[1766776549387,4.44941281,121.94,121.9,0.71]
[1766776549794,3.76941281,121.93,121.9,0.71]
[1766776550290,8.8807665,121.94,121.9,0.71]
[1766776550489,3.76941281,121.91,121.87,0.71]
[1766776550684,4.44941281,121.9,121.87,0.71]
[1766776552067,23.19963872,121.96,121.9,0.71]
[1766776552389,0.68,121.96,121.93,0.71]
[1766776552773,4.44941281,121.96,121.93,0.71]
[1766776553584,4.44941281,121.96,121.91,4.47941281]
[1766776553888,4.44941281,121.96,121.92,0.71]
[1766776554096,7.1678668,121.96,121.92,0.71]
[1766776555993,25.43767296,121.98,121.92,0.71]
[1766776556293,24.59,122.04,121.97,6.4878668]
[1766776556294,0.68,122.01,121.97,6.4878668]
[1766776556485,7.1678668,122.0,121.96,0.71]
[1766776557383,0.68,121.99,121.96,0.71]
[1766776558091,7.1678668,121.99,121.95,14.98]
[1766776558486,7.1678668,121.99,121.95,15.69]
[1766776560197,0.68,121.99,121.95,21.4678668]
[1766776560404,0.68,121.99,121.96,0.71]
[1766776563600,0.68,122.01,121.97,0.71]
[1766776563801,29.71798655,122.05,121.99,0.71]
[1766776564104,7.1678668,122.03,121.99,0.71]
[1766776565003,6.4878668,122.04,122.0,0.71]
[1766776565183,7.1678668,122.04,122.0,0.71]
[1766776566006,6.4878668,122.02,121.98,0.71]
[1766776566197,7.1678668,122.03,121.98,0.71]
[1766776566396,6.4878668,122.0,121.95,14.68749296]
[1766776566595,0.68,122.01,121.97,0.71]
[1766776566999,7.1678668,122.01,121.97,0.71]
[1766776567290,0.68,122.01,121.97,0.71]
[1766776567497,8.19499764,122.03,121.97,0.71]
[1766776567498,6.4878668,122.03,121.98,0.71]
[1766776567692,0.68,122.02,121.98,0.71]
[1766776574918,103.49,122.04,121.99,0.69]
[1766776575112,109.9778668,122.04,121.99,0.69]
[1766776576213,118.1719263,122.04,121.99,0.69]
[1766776577424,102.78,122.04,122.0,0.69]
[1766776578717,102.78,122.04,122.01,0.69]
[1766776579423,103.49,122.04,122.01,0.69]
[1766776579992,105.90861952,122.04,122.0,0.69]
[1766776580213,105.19861952,122.04,122.0,0.69]
[1766776580502,0.71,122.03,122.0,0.69]
[1766776582714,103.49,122.04,122.01,0.69]
[1766776584839,0.71,122.05,122.01,8.19602686]
[1766776585005,0.71,122.05,122.01,8.88602686]
[1766776585506,0.71,122.04,122.01,0.69]
[1766776586240,0.71,122.03,121.99,8.88726349]
[1766776586528,0.71,122.03,122.0,0.69]
[1766776586906,0.71,122.04,122.0,0.69]
[1766776587898,0.71,122.06,122.01,6.47978121]
[1766776588100,6.47978121,122.06,122.0,7.16978121]
[1766776588335,0.71,122.05,122.0,7.16978121]
[1766776588554,0.71,122.05,122.01,6.47978121]
[1766776588923,0.71,122.05,122.0,7.16978121]
[1766776589132,7.18978121,122.05,122.0,8.88623484]
[1766776589430,0.71,122.04,122.0,8.88623484]
[1766776589744,0.71,122.04,122.01,0.69]
[1766776594735,0.71,122.04,122.01,15.67]
[1766776595127,0.71,122.06,122.02,0.69]
[1766776597366,0.71,122.05,122.02,0.69]
[1766776600868,6.47978121,122.06,122.02,0.69]
[1766776601064,0.71,122.06,122.02,0.69]
[1766776602868,0.71,122.05,122.02,0.69]
[1766776603568,102.78,122.07,122.02,0.69]
[1766776603770,102.78,122.07,122.03,0.69]
[1766776603986,0.71,122.06,122.03,0.69]
[1766776607271,0.71,122.06,122.03,11.30198638]
[1766776608374,102.78,122.07,122.04,0.67]
[1766776608668,0.66,122.1,122.07,0.67]
[1766776609672,0.66,122.1,122.07,3.08744823]
[1766776610172,0.66,122.1,122.07,0.67]
[1766776610360,0.66,122.1,122.07,11.27940899]
[1766776610568,0.66,122.11,122.07,11.27940899]
[1766776610769,0.66,122.11,122.07,8.86196076]
[1766776612758,3.07744823,122.11,122.07,0.67]
[1766776613077,0.66,122.11,122.07,8.86198305]
[1766776613368,0.66,122.11,122.08,0.67]
[1766776613965,4.4353412,122.1,122.07,0.67]
[1766776615869,0.66,122.1,122.07,0.67]
[1766776616178,0.66,122.1,122.07,8.86196903]
[1766776622392,0.66,122.11,122.08,0.67]
[1766776622960,0.66,122.11,122.07,8.86196903]
[1766776626187,3.7753412,122.09,122.05,23.84279768]
[1766776626489,0.66,122.08,122.05,23.84279768]
[1766776627982,3.7753412,122.11,122.05,18.7553412]
[1766776628188,0.66,122.1,122.07,0.67]
[1766776628364,0.66,122.1,122.07,8.86200449]
[1766776629391,0.66,122.1,122.06,8.86269211]
[1766776630884,0.66,122.11,122.07,0.67]
[1766776632167,0.66,122.11,122.07,8.86195177]
[1766776637683,4.4353412,122.11,122.07,0.67]
[1766776639305,0.66,122.11,122.07,8.86180731]
[1766776639485,0.66,122.11,122.07,8.19180731]
[1766776639685,0.66,122.11,122.08,0.68]
[1766776639885,103.45,122.12,122.08,0.68]
[1766776640183,0.67,122.12,122.08,15.66]
[1766776640391,4.4453412,122.12,122.08,15.66]
[1766776640591,4.4453412,122.12,122.09,0.68]
[1766776641682,0.67,122.12,122.09,8.87063038]
[1766776641911,4.4453412,122.13,122.1,0.68]
[1766776642606,4.4453412,122.15,122.1,0.68]
[1766776642989,4.4453412,122.14,122.1,0.68]
[1766776643208,0.67,122.14,122.1,0.68]
[1766776643385,3.7753412,122.13,122.1,0.68]
[1766776643586,0.67,122.14,122.1,0.68]
[1766776643783,3.7753412,122.13,122.1,0.68]
[1766776644285,3.7753412,122.13,122.1,8.86965165]
[1766776645304,3.7753412,122.12,122.1,8.86965165]
[1766776645906,4.4453412,122.13,122.1,8.86965165]
[1766776651815,0.67,122.13,122.1,8.86965165]
[1766776651995,4.4453412,122.13,122.1,8.86965165]
[1766776652517,4.4453412,122.11,122.08,15.66]
[1766776652694,4.4453412,122.11,122.08,23.85109014]
[1766776653015,3.7753412,122.09,122.06,0.68]
[1766776653197,3.7753412,122.08,122.06,15.64]
[1766776654710,3.7753412,122.08,122.06,14.96]
[1766776654911,4.4453412,122.08,122.06,14.96]
[1766776658319,0.67,122.08,122.06,14.96]
[1766776658608,4.4453412,122.09,122.06,23.83231846]
[1766776658818,0.67,122.09,122.06,23.83231846]
[1766776660215,4.4453412,122.09,122.06,23.83231846]
[1766776666415,3.7753412,122.08,122.06,23.83231846]
[1766776670604,4.4453412,122.09,122.06,23.84231846]
[1766776672709,4.4453412,122.09,122.06,23.15231846]
[1766776672908,4.4453412,122.09,122.07,0.69]
[1766776673206,3.7753412,122.09,122.07,0.69]
[1766776676024,2.41672122,122.09,122.07,0.69]
[1766776676618,2.41672122,122.09,122.07,8.88198737]
[1766776677725,102.78,122.12,122.07,8.19198737]
[1766776678020,0.67,122.13,122.09,2.41672122]
[1766776678217,2.41672122,122.14,122.11,0.69]
[1766776678218,0.67,122.14,122.11,0.69]
[1766776678602,0.67,122.15,122.11,0.69]
[1766776678806,3.08672122,122.15,122.11,0.69]
[1766776680126,0.67,122.15,122.12,8.87866688]
[1766776680328,3.08672122,122.15,122.12,8.87866688]
[1766776680516,0.67,122.15,122.11,8.18923609]
[1766776680716,3.08672122,122.13,122.1,23.8598233]
[1766776683426,0.67,122.13,122.1,23.8598233]
[1766776686106,2.41672122,122.14,122.1,23.1698233]
[1766776686310,3.08672122,122.15,122.11,0.69]
[1766776686815,0.67,122.15,122.11,0.69]
[1766776687524,0.67,122.16,122.12,0.69]
[1766776687724,0.67,122.16,122.13,23.83757113]
[1766776688133,2.61672122,122.17,122.13,23.14757113]
[1766776688430,0.67,122.16,122.13,23.83757113]
[1766776689224,0.87,122.17,122.14,0.69]
[1766776690038,0.87,122.17,122.14,8.87716482]
[1766776692331,0.67,122.15,122.11,3.10672122]
[1766776692642,3.08672122,122.15,122.12,15.65]
[1766776693228,3.08672122,122.15,122.12,23.83851534]
[1766776694634,0.67,122.15,122.12,23.83851534]
[1766776694838,3.08672122,122.15,122.12,23.83851534]
[1766776697244,0.67,122.15,122.12,23.83851534]
[1766776715064,0.67,122.15,122.12,23.14851534]
[1766776715265,0.67,122.15,122.13,0.7]
[1766776717944,0.67,122.15,122.12,23.84851534]
[1766776733796,0.89,122.17,122.13,0.71]
[1766776734086,0.69,122.16,122.13,0.71]
[1766776734780,0.2,122.17,122.13,3.12672122]
[1766776734985,0.2,122.17,122.14,0.71]
[1766776735284,0.89,122.17,122.15,15.67]
[1766776737589,0.89,122.17,122.15,23.85654627]
[1766776737975,1e-08,122.17,122.16,0.71]
[1766776738380,0.2,122.19,122.17,0.71]
[1766776739273,0.69,122.17,122.15,23.14654627]
[1766776739481,4.46054618,122.17,122.15,23.14654627]
[1766776739994,0.69,122.17,122.15,23.85654627]
[1766776747399,4.46054618,122.17,122.15,14.96]
[1766776747583,0.69,122.15,122.09,0.71]
[1766776747784,0.69,122.14,122.11,8.18895965]
[1766776747986,4.46054618,122.15,122.12,0.71]
[1766776748685,0.69,122.15,122.12,0.71]
[1766776748889,4.46054618,122.15,122.12,0.71]
[1766776749305,0.69,122.15,122.12,0.71]
[1766776749507,4.46054618,122.15,122.12,8.89846054]
[1766776750289,0.69,122.15,122.12,8.89846054]
[1766776750490,23.38427542,122.19,122.13,14.96]
[1766776750491,3.77054618,122.17,122.13,14.96]
[1766776750805,0.69,122.16,122.13,15.67]
[1766776751208,0.69,122.16,122.13,14.96]
[1766776751401,0.69,122.16,122.14,0.71]
[1766776751702,4.46054618,122.16,122.13,15.67]
[1766776753009,4.46054618,122.16,122.13,23.85782826]
[1766776756804,0.69,122.16,122.13,23.85782826]
[1766776759814,4.46054618,122.16,122.13,23.85782826]
[1766776760514,0.69,122.16,122.13,23.85782826]
[1766776760700,4.46054618,122.16,122.13,23.85782826]
[1766776761012,0.7,122.15,122.13,23.14782826]
[1766776761411,0.7,122.15,122.13,14.96]
[1766776761714,0.7,122.15,122.13,15.64]
[1766776763513,0.7,122.15,122.13,23.82770814]
[1766776772622,4.47054618,122.15,122.13,14.96]
[1766776773512,0.7,122.15,122.13,15.64]
[1766776774326,0.7,122.15,122.13,14.96]
[1766776781413,0.7,122.14,122.13,14.96]
[1766776781615,4.47054618,122.14,122.12,14.96]
[1766776783311,0.7,122.14,122.12,14.96]
[1766776784813,4.47054618,122.14,122.12,14.96]
[1766776789122,0.7,122.14,122.12,14.96]
[1766776789328,0.7,122.14,122.12,23.14864412]
[1766776790539,0.7,122.14,122.12,14.96]
[1766776791730,0.7,122.14,122.12,23.14857129]
[1766776797045,3.11440391,122.14,122.12,23.14857129]
[1766776801050,3.11440391,122.14,122.12,14.96]
[1766776802651,0.7,122.14,122.12,14.96]
[1766776802864,2.41440391,122.14,122.12,23.14854756]
[1766776803027,110.96490629,122.18,122.12,23.14854756]
[1766776803028,3.12440391,122.16,122.13,8.88740598]
[1766776803747,2.41440391,122.15,122.13,8.88740598]
[1766776806651,0.71,122.13,122.11,8.18927152]
[1766776806846,3.12440391,122.13,122.11,8.88927152]
[1766776808653,3.12440391,122.13,122.11,8.18927152]
[1766776808839,0.71,122.13,122.11,8.18927152]
[1766776809041,0.71,122.13,122.1,23.84972084]
[1766776810638,3.12440391,122.13,122.1,23.84972084]
[1766776810952,0.71,122.13,122.1,23.84972084]
[1766776811838,2.41440391,122.14,122.1,23.84972084]
[1766776811839,0.71,122.14,122.11,0.7]
[1766776812953,3.12440391,122.14,122.11,0.7]
[1766776814963,3.12440391,122.14,122.11,8.88898035]